Cogmind - Beta 14 @@@ ROGUE MODE // 2024.09.04 @ 04:36:22 Player: Some Pennies Result: Self-destructed Performance ------------- Evolutions (6) 3000 Regions Visited (21) 4200 Robots Destroyed (239) 1195 Value Destroyed (9190) 9190 Prototype IDs (56) 1120 Alien Tech Used (1) 200 Bonus (4681) 4681 TOTAL SCORE: 23586 Bonus ------- High Alert Combat Kills 1322 Follower Combat Kills 1459 Network Hubs Disabled 200 Met Data Miner 300 Met Imprinter 300 Met Zhirov 300 Built Enhanced Grunts 300 Met R17 at Cetus 500 Cogmind --------- Core Integrity 551/1150 Matter 11/300 Energy 3/420 System Corruption 8% Temperature Cool (0) Movement Treading (240) Ox1 Location -4/Factory Parts ------- > --- POWER (2) -------- Light Neutrino Core (fused) Quantum Reactor > --- PROPULSION (6) --- Centrium Heavy Treads Improved VSS Leg Improved Antigrav System > --- UTILITY (9) ------ Improved Cooling System Advanced Cooling System Improved Coolant Injector Huge Storage Unit Improved Thermal Shield Advanced Force Field > --- WEAPON (2) ------- EMDS > --- INVENTORY (25) --- Advanced Energy Well (500) Long-range Terrain Scanner Quantum Capacitor Experimental Phase Shifter Advanced Cloaking Device Experimental EM Disruption Field Experimental EM Disruption Field Advanced Force Field Advanced KE Penetrator Precision Grenade Launcher Micro-nuke Launcher Improved Plasma Cutter Multitool Peak State ------------ > --- POWER ------------ Quantum Reactor Quantum Reactor > --- PROPULSION ------- Enhanced Biometal Leg Enhanced Biometal Leg Enhanced Biometal Leg Enhanced Biometal Leg Enhanced Biometal Leg Enhanced Biometal Leg > --- UTILITY ---------- Experimental Heat Sink Improved Cooling System Huge Storage Unit Quantum Capacitor Advanced Transmission Jammer Layered Heavy Armor Plating Centrium Medium Armor Plating > --- WEAPON ----------- Advanced KE Penetrator Advanced KE Penetrator > --- INVENTORY -------- Quantum Reactor Meta Core Centrium Heavy Treads Centrium Heavy Treads Experimental Heat Sink Advanced Energy Well Experimental Targeting Computer Experimental Phase Shifter Improved Utility Shielding Layered Heavy Armor Plating Experimental EM Disruption Field Experimental EM Disruption Field Authchip [Propulsion] Advanced Variable Charge Gun EMDS EMDS Precision Grenade Launcher Improved Plasma Cutter Multitool Scythe [Rating: 161] Favorites ----------- Power Heavy Ion Engine Engine Heavy Ion Engine Power Core Fission Core Reactor Quantum Reactor Propulsion Light Treads Treads Light Treads Leg Enhanced Biometal Leg Wheel Armored Huge Wheel Hover Unit Hover Unit Flight Unit Nuclear Pulse Thruster Utility Hacking Suite Device Improved Heat Sink Storage Huge Storage Unit Processor Advanced Signal Interpreter Hackware Hacking Suite Protection Hardened Heavy Armor Plating Weapon Advanced Beam Rifle Energy Gun Advanced Beam Rifle Energy Cannon Subdweller Beam Cannon Ballistic Gun Advanced KE Penetrator Ballistic Cannon Improved Light Cannon Launcher Precision Grenade Launcher Special Weapon Multitool Impact Weapon Maul Slashing Weapon Scythe Piercing Weapon Spear Special Melee Weapon Improved Datajack Build | -11 -10 -10 -8 -7 -7 -7 -7 -6 -6 -6 -6 -6 -5 -5 -5 -5 -5 -5 -4 -4 -4 ------- Run | Yrd Mat Sub Mat Fac Low Low Dat Pro Fac Low Low Zio Pro Fac Ext Cet Arc Hub Fac Was Fac Slots Evolved 12 | . . . 4 2 . . . . 2 . . . . 2 . . . . 2 . . Power 1 | . . . . 1 . . . . . . . . . . . . . . . . . Propulsion 4 | . . . 2 . . . . . . . . . . 1 . . . . 1 . . Utility 7 | . . . 2 1 . . . . 2 . . . . 1 . . . . 1 . . Weapon . | . . . . . . . . . . . . . . . . . . . . . . Parts Attached 357 | 8 14 10 43 21 2 13 2 8 48 . 1 . 2 32 31 8 . 57 15 12 30 Power 38 | 1 2 . 5 3 1 2 . 1 2 . . . . 6 3 1 . 4 . 2 5 Engine 19 | 1 2 . 4 2 1 2 . 1 2 . . . . 4 . . . . . . . Core 9 | . . . 1 1 . . . . . . . . . 2 3 . . . . . 2 Reactor 10 | . . . . . . . . . . . . . . . . 1 . 4 . 2 3 Propulsion 86 | 3 3 2 13 5 1 4 . . 13 . 1 . 1 6 11 2 . 6 5 3 7 Treads 47 | 2 2 2 11 5 1 3 . . 1 . . . . . 7 2 . 4 . 3 4 Leg 15 | . 1 . . . . 1 . . . . . . . . 4 . . 2 5 . 2 Wheel 3 | 1 . . 2 . . . . . . . . . . . . . . . . . . Hover 4 | . . . . . . . . . 3 . . . . . . . . . . . 1 Flight 17 | . . . . . . . . . 9 . 1 . 1 6 . . . . . . . Utility 147 | 2 6 3 16 8 . 4 . 1 25 . . . 1 13 8 3 . 33 9 5 10 Device 62 | 1 2 . 7 3 . 2 . 1 5 . . . 1 4 2 . . 18 5 3 8 Storage 15 | 1 3 1 2 . . 1 . . 3 . . . . 1 2 . . . . . 1 Processor 12 | . . 1 . . . . . . 8 . . . . 2 . . . . 1 . . Hackware 13 | . . . 1 1 . . . . 7 . . . . 3 . . . . 1 . . Protection 45 | . 1 1 6 4 . 1 . . 2 . . . . 3 4 3 . 15 2 2 1 Artifact . | . . . . . . . . . . . . . . . . . . . . . . Weapon 86 | 2 3 5 9 5 . 3 2 6 8 . . . . 7 9 2 . 14 1 2 8 Energy Gun 19 | . . . 6 2 . . . 4 2 . . . . 1 . . . 2 1 1 . Energy Cannon 27 | . . 3 2 1 . 1 1 . . . . . . 3 8 2 . 4 . . 2 Ballistic Gun 18 | 2 1 1 1 2 . 2 1 1 . . . . . . . . . 5 . 1 1 Ballistic Cannon 5 | . 2 1 . . . . . . 1 . . . . . . . . . . . 1 Launcher 5 | . . . . . . . . . . . . . . 1 . . . 1 . . 3 Special Weapon 3 | . . . . . . . . . . . . . . 1 . . . 2 . . . Impact Weapon 1 | . . . . . . . . 1 . . . . . . . . . . . . . Slashing Weapon 5 | . . . . . . . . . 2 . . . . 1 1 . . . . . 1 Piercing Weapon 1 | . . . . . . . . . 1 . . . . . . . . . . . . Special Melee Weapon 2 | . . . . . . . . . 2 . . . . . . . . . . . . Unidentified Prototypes 27 | . 1 . 4 1 . . . 1 4 . . . . 7 . 2 . 5 . 1 1 Corrupted Parts 9 | . . . . . . . . . . . . . . . . 2 . 7 . . . System Corruption 52 | . . . . . . . . . . . . . . . . 16 . 36 . . . Parts Lost 49 | . 1 . 2 1 1 4 . 9 2 . . . 1 1 2 . . 8 . 3 14 Power 6 | . . . . . 1 . . 2 . . . . . 1 . . . . . . 2 Propulsion 20 | . 1 . . 1 . 3 . 4 2 . . . . . . . . 3 . 1 5 Utility 18 | . . . 2 . . 1 . 3 . . . . . . 2 . . 4 . 1 5 Weapon 5 | . . . . . . . . . . . . . 1 . . . . 1 . 1 2 Highest Loss Streak 7 | . 1 . 1 1 1 4 . 4 2 . . . 1 1 2 . . 3 . 2 7 To Critical Strikes . | . . . . . . . . . . . . . . . . . . . . . . Average Slot Usage (%) 84 | . 99 86 93 94 99 91 77 60 92 100 100 100 97 90 80 83 82 81 88 75 62 Engine 7 | . 14 14 7 13 6 7 15 7 10 13 13 13 13 6 . . . . . . . Core 1 | . . . 1 . 7 6 . . . . . . . 3 7 9 5 . . . 2 Reactor 1 | . . . . . . . . . . . . . . . . 1 5 10 10 10 6 Treads 16 | . 22 28 29 29 30 24 23 7 . . . . . . 10 18 17 12 . 10 10 Leg 2 | . 5 . . . . 2 7 . . . . . . . 9 . . 3 30 9 . Flight 3 | . . . . . . . . . 19 26 26 26 26 26 4 . . . . . . Device 10 | . 10 . 14 12 15 15 15 13 6 6 6 6 6 5 2 5 5 17 15 11 19 Storage 6 | . 14 1 8 7 7 7 7 7 4 6 6 6 6 5 6 5 5 5 5 5 4 Processor 2 | . . 1 . . . . . . 10 6 6 6 6 5 5 5 5 . 4 5 4 Hackware 5 | . . . 3 4 . . . . 21 26 26 26 26 23 17 9 5 2 . 5 1 Protection 7 | . 2 12 6 7 15 9 7 6 1 . . . . 4 9 12 17 12 9 6 2 Energy Gun 4 | . . . 14 11 7 6 . 4 . . . . . . . . . 3 4 3 2 Energy Cannon 4 | . . 20 3 . 7 7 . 1 . . . . . . 2 11 11 5 . . . Ballistic Gun 2 | . 13 3 . 2 . . . 5 . . . . . . . . . 1 5 6 3 Ballistic Cannon 1 | . 14 4 . . . . . . . . . . . . . . . . . . . Peak Build Rating 161 | 7 14 19 45 44 44 45 45 45 59 59 59 58 59 84 91 125 125 148 161 155 134 Average Rating 55 | 6 11 13 30 41 43 41 37 33 50 59 58 58 57 71 62 109 125 137 156 138 111 On Entrance 62 | . 7 12 19 33 44 44 45 45 17 59 59 58 58 52 56 91 125 125 147 155 133 Naked Turns . | . . . . . . . . . . . . . . . . . . . . . . Heaviest Build 193 | 14 39 44 101 126 120 132 132 132 20 20 20 20 23 29 140 156 156 179 187 193 189 Greatest Support 210 | 40 40 40 80 82 82 82 60 60 24 23 25 25 25 30 148 188 188 188 180 210 210 Greatest Overweight (x) 44 | . 1 1 3 2 1 8 2 39 1 . . . . 1 7 . . 2 1 2 44 Average Overweight (x) . | . . . . 1 1 1 2 6 . . . . . . . . . . . . 1 Largest Inventory Capacity 25 | 8 15 15 25 25 25 25 25 25 10 10 10 10 10 10 25 25 25 25 25 25 25 Average Capacity 18 | 7 9 5 19 25 25 25 25 25 7 10 10 10 10 10 21 25 25 25 25 25 25 Most Carried 25 | 7 11 15 25 25 24 25 25 25 10 10 10 10 10 10 25 25 25 25 25 25 25 Average Carried 16 | 3 8 5 17 24 23 23 25 23 7 10 10 10 10 9 18 24 25 24 24 24 18 Final Capacity 25 | 8 15 15 25 25 25 25 25 25 10 10 10 10 10 10 25 25 25 25 25 25 25 Final Carried 25 | 7 11 15 25 24 24 25 25 23 10 10 10 10 10 10 25 25 25 25 25 25 14 Class Distribution -------------------- 46% | Scavenger-Mutant 24% | Mutant 12% | Hacker-Sprinter 8% | Subdweller-Mutant 6% | Hacker-Mutant Dominant Class ---------------- Mutant | -10/Materials Subdweller-Mutant | -10/Subcaves Scavenger-Mutant | -8/Materials Scavenger-Mutant | -7/Factory Scavenger-Mutant | -7/Lower Caves Scavenger-Mutant | -7/Lower Caves Scavenger-Mutant | -7/Data Miner Mutant | -6/Proximity Caves Hacker-Sprinter | -6/Factory Hacker-Sprinter | -6/Lower Caves Hacker-Sprinter | -6/Lower Caves Hacker-Sprinter | -6/Zion Hacker-Sprinter | -5/Proximity Caves Hacker-Sprinter | -5/Factory Hacker-Mutant | -5/Extension Hacker-Mutant | -5/Cetus Commander-Mutant | -5/Archives Scavenger-Mutant | -5/Hub_04(d) Scavenger-Mutant | -4/Factory Scavenger-Mutant | -4/Waste Scavenger-Mutant | -4/Factory Resources | -11 -10 -10 -8 -7 -7 -7 -7 -6 -6 -6 -6 -6 -5 -5 -5 -5 -5 -5 -4 -4 -4 ----------- Run | Yrd Mat Sub Mat Fac Low Low Dat Pro Fac Low Low Zio Pro Fac Ext Cet Arc Hub Fac Was Fac Matter Collected 5677 | 361 580 202 430 359 27 180 . 239 469 20 31 . 15 280 285 148 . 802 363 316 570 Remotely . | . . . . . . . . . . . . . . . . . . . . . . Salvage Created 12675 | 270 644 234 1876 1596 67 218 . 192 535 . 53 . . 605 342 119 . 2574 547 1607 1196 Parts 505 | 27 56 16 97 65 2 6 . 15 18 . 1 . . 22 11 2 . 87 20 24 36 Haulers Intercepted 19 | . 2 . 6 3 . . . . . . . . . 4 2 . . . 1 . 1 Recyclers Shooed 13 | 1 2 . . 6 . . . . 2 . . . . . . . . . 1 . 1 Parts Field Recycled . | . . . . . . . . . . . . . . . . . . . . . . Retrieved Matter . | . . . . . . . . . . . . . . . . . . . . . . Parts Self-Destructed 30 | . . 2 . . 1 11 . 15 . . 1 . . . . . . . . . . Prevented . | . . . . . . . . . . . . . . . . . . . . . . Kills | -11 -10 -10 -8 -7 -7 -7 -7 -6 -6 -6 -6 -6 -5 -5 -5 -5 -5 -5 -4 -4 -4 ------- Run | Yrd Mat Sub Mat Fac Low Low Dat Pro Fac Low Low Zio Pro Fac Ext Cet Arc Hub Fac Was Fac Combat Hostiles Destroyed 160 | . 17 7 31 22 1 5 . 6 1 . . . . . 2 1 . 37 7 6 17 Melee 2 | . . . . . . . . . 1 . . . . . . . . . . . 1 Guns 97 | . 11 . 24 20 . 3 . 5 . . . . . . . . . 13 7 6 8 Cannons 45 | . 6 6 4 1 1 2 . 1 . . . . . . 2 1 . 21 . . . AOE 6 | . . . . . . . . . . . . . . . . . . . . . 6 Classes Destroyed 22 | 2 5 2 5 2 . . . 2 . . . . . . . . . 3 . 1 . Worker 16 | . 1 . 6 2 . . . . 1 . . . . 3 . . . 2 . . 1 Builder 3 | . . . 1 1 . . . . 1 . . . . . . . . . . . . Tunneler 11 | 8 . . 2 . . . . . 1 . . . . . . . . . . . . Hauler 19 | . 2 . 6 3 . . . . . . . . . 4 2 . . . 1 . 1 Recycler 17 | 1 1 . 4 5 . . . . 3 . . . . 1 . . . . . . 2 Mechanic 2 | . . . 1 . . . . . . . . . . . . . . . . . 1 Operator 4 | . . . 2 . . . . . 1 . . . . 1 . . . . . . . Drone 2 | . . . . . . . . 2 . . . . . . . . . . . . . Watcher 7 | . 2 . 2 1 . . . . . . . . . . . 1 . 1 . . . Swarmer 26 | . 9 . 14 . . . . 1 . . . . . . . . . . 1 . 1 Saboteur 1 | . . . . . . . . . . . . . . . . . . 1 . . . Grunt 54 | . 8 . 10 11 . 4 . 1 . . . . . . . . . 12 2 . 6 Brawler 5 | . . . . 2 . . . . . . . . . . . . . 1 . . 2 Duelist 3 | . . . . . . . . . . . . . . . . . . 2 . . 1 Protector 3 | . . . . . . . . . . . . . . . . . . 3 . . . Sentry 16 | . . . 5 3 1 . . 1 . . . . . . . . . 2 2 . 2 Hunter 9 | . . . 2 2 . . . . 1 . . . . . . . . 2 2 . . Programmer 14 | . . . . 4 . 1 . . . . . . . . 1 . . 4 . . 4 Behemoth 4 | . . . . . . . . 1 . . . . . . 1 . . 1 . . 1 Compactor 6 | . . . . . . . . . . . . . . . . . . . . 6 . Cetus Guard 1 | . . . . . . . . . . . . . . . . 1 . . . . . Lightning 9 | . . . . . . . . . . . . . . . . . . 9 . . . Artisan 1 | . . 1 . . . . . . . . . . . . . . . . . . . Subdweller 7 | . . 7 . . . . . . . . . . . . . . . . . . . Best Kill Streak 8 | 4 4 1 7 6 1 4 . 2 2 . . . . 3 1 1 . 8 2 2 7 Combat Bots Only 8 | . 3 1 4 4 1 4 . 2 1 . . . . . 1 1 . 8 1 2 6 Max Kills in Single Turn 4 | 1 2 1 4 2 1 1 . 1 1 . . . . 1 1 1 . 1 1 1 2 Gunslinging 1 | . 1 . . 1 . . . . . . . . . . . . . . . . . Exploded 1 | . . . . . . . . . . . . . . . . . . . . . 1 Melee 1 | . . . . . . . . . 1 . . . . . . . . . . . 1 Uniques/NPCs Destroyed . | . . . . . . . . . . . . . . . . . . . . . . Combat | -11 -10 -10 -8 -7 -7 -7 -7 -6 -6 -6 -6 -6 -5 -5 -5 -5 -5 -5 -4 -4 -4 -------- Run | Yrd Mat Sub Mat Fac Low Low Dat Pro Fac Low Low Zio Pro Fac Ext Cet Arc Hub Fac Was Fac Hostile Shots Fired 1822 | . 89 29 191 254 36 54 . 136 56 18 . . 7 19 16 22 . 462 78 4 351 Missed 479 | . 24 8 54 87 14 9 . 46 28 15 . . 2 7 8 4 . 63 21 . 89 Damage Taken 22422 | . 712 530 1795 1800 175 763 . 1415 468 37 . . 126 228 224 356 . 7429 741 314 5309 Core 2144 | . 97 19 280 183 27 135 . 126 132 19 . . 18 36 40 39 . 394 35 248 316 Absorbed by Shields 1796 | . . . . 59 . . . . . . . . . . 147 104 . . 250 85 1151 Reduced by Siege Mode 943 | . . . . . . . . . . . . . . . . 11 . 552 . . 380 Redirected to Shielding 77 | . . . . . . . . . . . . . . . . . . 77 . . . Ignored by Resistances 3397 | . . . . 21 . 30 . . . . . . . . . . . 3346 . . . Regen/Repaired (Parts) 897 | . 114 . . . . . . . . . . . . . . . . . . . 783 Core Remaining (%) 60 | 100 . 53 49 . . . . 32 . . . . 80 . . . . 49 . . . Volleys Fired 796 | 22 65 38 132 96 3 17 . 30 . . . . . 3 31 11 . 187 34 29 98 Largest 2 | 2 2 2 2 2 2 2 . 2 . . . . . 1 1 2 . 2 2 2 2 Hottest 330 | 40 78 160 141 160 160 160 . 160 . . . . . 90 90 171 . 330 115 275 115 Shots Fired 1447 | 44 130 64 250 192 7 35 . 58 . . . . . 3 31 22 . 353 68 58 132 Gun 981 | 44 82 13 202 184 3 17 . 37 . . . . . . . . . 170 68 58 103 Cannon 446 | . 48 51 48 8 4 18 . 21 . . . . . 3 31 22 . 182 . . 10 Launcher 20 | . . . . . . . . . . . . . . . . . . 1 . . 19 Special . | . . . . . . . . . . . . . . . . . . . . . . Kinetic 452 | 44 130 32 . 28 . . . 17 . . . . . . . . . 42 40 49 70 Thermal 948 | . . 32 250 164 7 35 . 41 . . . . . 3 31 7 . 307 28 9 34 Explosive 20 | . . . . . . . . . . . . . . . . . . 1 . . 19 Electromagnetic 27 | . . . . . . . . . . . . . . . . 15 . 3 . . 9 Robot Hit Streak 31 | 9 10 14 12 18 9 5 . 13 . . . . . . 14 11 . 18 20 17 31 Robot Miss Streak 12 | 3 7 2 9 12 1 5 . 11 . . . . . . 2 2 . 5 3 1 2 Penetration Max 1 | . . . . . . . . . . . . . . . . . . . 1 . 1 Secondary Targets 15 | . 3 . 3 5 . . . . . . . . . . . . . 2 . . 2 Max Gunslinging Chain 1 | . 1 . 1 1 . . . . . . . . . . . . . 1 . . 1 Shots Hit Robots 1068 | 25 78 42 149 144 5 26 . 35 27 . 2 . . 16 27 17 . 252 52 50 121 Core Hits 464 | 10 30 11 65 94 3 13 . 15 11 . 1 . . 8 10 7 . 91 21 12 62 Critical Kills 14 | . . 1 1 . . . . . . . . . . . . . . 4 1 4 3 Critical Parts Destroyed 13 | . . . . . . . . 1 . . . . . . . . . 2 5 . 5 Critical Strikes 61 | . 2 2 8 5 . . . 2 . . 1 . . 2 . 1 . 6 6 9 17 Burn 13 | . . . 7 5 . . . 1 . . . . . . . . . . . . . Meltdown 4 | . . 1 1 . . . . . . . . . . . . . . 2 . . . Destroy 34 | . . . . . . . . 1 . . . . . . . . . 4 6 9 14 Blast 3 | . 2 1 . . . . . . . . . . . . . . . . . . . Corrupt 4 | . . . . . . . . . . . . . . . . 1 . . . . 3 Sever 2 | . . . . . . . . . . . . . . 2 . . . . . . . Impale 1 | . . . . . . . . . . . 1 . . . . . . . . . . Melee Attacks 101 | . . . . . . . . 4 53 4 2 1 . 27 4 . . . . . 6 Impact 4 | . . . . . . . . 4 . . . . . . . . . . . . . Slashing 85 | . . . . . . . . . 48 . . . . 27 4 . . . . . 6 Piercing 12 | . . . . . . . . . 5 4 2 1 . . . . . . . . . Sneak Attacks 21 | . . . . . . . . . 8 . . . . 10 3 . . . . . . Combat Hostiles . | . . . . . . . . . . . . . . . . . . . . . . Follow-up Attacks . | . . . . . . . . . . . . . . . . . . . . . . Damage Inflicted 31011 | 291 1216 886 3889 3405 136 655 . 908 1214 . 96 . . 967 1200 579 . 8040 1466 1565 4498 Guns 17090 | 291 679 185 2600 3103 88 329 . 609 . . . . . . . . . 3374 1466 1565 2801 Cannons 9240 | . 537 701 792 184 48 313 . 299 . . . . . . 872 579 . 4546 . . 369 Explosions 1960 | . . . 496 68 . . . . . . . . . . . . . 120 . . 1276 Melee 2625 | . . . . . . . . . 1214 . 96 . . 967 317 . . . . . 31 Ramming 96 | . . . 1 50 . 13 . . . . . . . . 11 . . . . . 21 Kinetic 7094 | 291 1216 520 . 468 . . . 228 . . . . . . . . . 540 782 1185 1864 Thermal 18771 | . . 366 3687 2819 136 642 . 680 . . . . . . 872 170 . 7380 684 380 955 Explosive 1597 | . . . 201 . . . . . . . . . . . . . . 120 . . 1276 Electromagnetic 828 | . . . . 68 . . . . . . . . . . . 409 . . . . 351 Impact . | . . . . . . . . . . . . . . . . . . . . . . Slashing 2454 | . . . . . . . . . 1139 . . . . 967 317 . . . . . 31 Piercing 171 | . . . . . . . . . 75 . 96 . . . . . . . . . . Highest Corruption 76 | . . . . 3 3 4 4 4 2 2 2 2 . . . 16 16 76 . . 5 Average Corruption 10 | . . . . 2 3 3 4 4 2 2 2 2 . . . 15 16 36 . . 2 Corruption Purged . | . . . . . . . . . . . . . . . . . . . . . . Corruption Blocked . | . . . . . . . . . . . . . . . . . . . . . . Effects 195 | . . . . 11 6 15 6 36 6 1 5 . . . . 3 4 97 . . 5 Message Errors 39 | . . . . 2 . 3 1 11 . . . . . . . . . 21 . . 1 Matter Fused 47 | . . . . 3 4 4 2 9 2 . 3 . . . . 1 1 16 . . 2 Heat Flow Errors 24 | . . . . 1 1 3 . 2 . . 1 . . . . 1 1 14 . . . Energy Discharges 22 | . . . . 3 . 1 2 3 1 1 1 . . . . . 1 8 . . 1 Parts Rejected 2 | . . . . . . . . . . . . . . . . . . 2 . . . Parts Fused 3 | . . . . . . . . 1 . . . . . . . . . 1 . . 1 Data Loss (minor) 23 | . . . . 2 . 2 1 4 2 . . . . . . 1 . 11 . . . Data Loss (major) 3 | . . . . . . 1 . 2 . . . . . . . . . . . . . Misfires 4 | . . . . . 1 1 . . . . . . . . . . . 2 . . . Alerts 7 | . . . . . . . . 3 1 . . . . . . . 1 2 . . . Weapon Failures 21 | . . . . . . . . 1 . . . . . . . . . 20 . . . Overload Shots 6 | . . . . . . . . . . . . . . . . . . 2 . 4 . Effects 2 | . . . . . . . . . . . . . . . . . . . . 2 . Heat Surge 1 | . . . . . . . . . . . . . . . . . . . . 1 . Short Circuit 1 | . . . . . . . . . . . . . . . . . . . . 1 . Overflow Damage 626 | . 19 . 143 2 . . . . 161 . 13 . . 132 16 . . 101 . . 39 Projectiles 152 | . 19 . 8 2 . . . . . . . . . . 16 . . 101 . . 6 Explosions 168 | . . . 135 . . . . . . . . . . . . . . . . . 33 Melee 306 | . . . . . . . . . 161 . 13 . . 132 . . . . . . . Knockbacks 2 | . 1 1 . . . . . . . . . . . . . . . . . . . Impact . | . . . . . . . . . . . . . . . . . . . . . . Kinetic 2 | . 1 1 . . . . . . . . . . . . . . . . . . . Secondary . | . . . . . . . . . . . . . . . . . . . . . . Self-Inflicted Damage 276 | . . . 167 15 . . . . . . . . . . . . . . . . 94 Shots 8 | . . . 2 1 . . . . . . . . . . . . . . . . 5 Rammed 14 | . . . 1 4 . 4 . . . . . . . . . . . 1 . . 4 Targets Rammed 17 | . . . 1 6 . 4 . . . . . . . . 1 . . 1 . . 4 Kicked 1 | . . . . . . . . . . . . . . . 1 . . . . . . Crushed 2 | . . . . 2 . . . . . . . . . . . . . . . . . Highest Temperature 759 | . 30 93 387 379 300 611 . 389 1 9 178 . . 131 276 257 103 348 136 759 297 Average Temperature 102 | . 19 33 99 82 143 224 . 113 1 9 97 . . 24 88 95 103 105 34 306 70 Received Heat Transfer 5140 | . 285 96 603 487 54 369 . 276 27 18 . . . 108 25 . . 1234 146 . 1412 Effects 30 | . . . 6 . . 13 . . . . . . . . . . . 1 . 10 . Shutdowns 9 | . . . . . . 4 . . . . . . . . . . . 1 . 4 . Energy Bleed 4 | . . . . . . 1 . . . . . . . . . . . . . 3 . Interference 8 | . . . 6 . . 2 . . . . . . . . . . . . . . . Matter Decay 1 | . . . . . . 1 . . . . . . . . . . . . . . . Short Circuit 2 | . . . . . . 1 . . . . . . . . . . . . . 1 . Damage (minor) 1 | . . . . . . 1 . . . . . . . . . . . . . . . Damage (major) 3 | . . . . . . 2 . . . . . . . . . . . . . 1 . Damage (core) 2 | . . . . . . 1 . . . . . . . . . . . . . 1 . Siege Activations 12 | . . . . . . . . . . . . . . . . 2 . 8 . . 2 Total Turns 652 | . . . . . . . . . . . . . . . . 29 . 493 . . 130 Longest Duration 143 | . . . . . . . . . . . . . . . . 15 . 143 . . 110 Robots Corrupted 2 | . . . . . . . . . . . . . . . . . . . . . 2 Combat Hostiles 2 | . . . . . . . . . . . . . . . . . . . . . 2 Parts Fried 7 | . . . . . . . . . . . . . . . . 4 . . . . 3 Impact Corruptions . | . . . . . . . . . . . . . . . . . . . . . . Robots Melted 8 | . . 1 3 1 . . . . . . . . . . . . . 3 . . . Combat Hostiles 8 | . . 1 3 1 . . . . . . . . . . . . . 3 . . . Parts Melted 43 | . . 2 11 10 . 1 . . . . . . . . . . . 17 1 1 . Heat Transferred 26919 | . . 629 6601 5752 300 1250 . 1397 . . . . . . 851 185 . 7571 888 348 1147 Parts Sabotaged . | . . . . . . . . . . . . . . . . . . . . . . Parts Stolen . | . . . . . . . . . . . . . . . . . . . . . . Parts Stripped . | . . . . . . . . . . . . . . . . . . . . . . Power Chain Reactions . | . . . . . . . . . . . . . . . . . . . . . . Alert | -11 -10 -10 -8 -7 -7 -7 -7 -6 -6 -6 -6 -6 -5 -5 -5 -5 -5 -5 -4 -4 -4 ------- Run | Yrd Mat Sub Mat Fac Low Low Dat Pro Fac Low Low Zio Pro Fac Ext Cet Arc Hub Fac Was Fac Peak Influence 1142 | 45 360 . 753 428 . . . . 426 . . . . 170 340 289 260 1142 828 312 388 Initial 559 | . 29 . . 327 . . . . 300 . . . . . 37 56 115 91 559 289 57 Average 319 | 19 196 . 408 264 . . . . 276 . . . . 59 172 180 161 758 639 202 177 Maximum Alert Level 4 | . 1 . 3 2 . . . . 2 . . . . . 1 1 1 4 3 1 1 Low Security (%) 33 | 100 37 . 19 19 . . . . 20 . . . . 100 57 66 69 3 . 42 49 Level 1 43 | . 62 . 29 76 . . . . 76 . . . . . 42 33 30 10 . 57 50 Level 2 14 | . . . 41 3 . . . . 3 . . . . . . . . 28 80 . . Level 3 7 | . . . 9 . . . . . . . . . . . . . . 46 19 . . Level 4 1 | . . . . . . . . . . . . . . . . . . 11 . . . Level 5 . | . . . . . . . . . . . . . . . . . . . . . . High Security . | . . . . . . . . . . . . . . . . . . . . . . Max Security . | . . . . . . . . . . . . . . . . . . . . . . Squads Dispatched 34 | . 1 . 4 5 . . . . 5 . . . . 4 1 . . 9 2 . 3 Investigation 12 | . 1 . 2 2 . . . . 4 . . . . 2 . . . . 1 . . Extermination 9 | . . . . 3 . . . . 1 . . . . . . . . 2 1 . 2 Reinforcement 8 | . . . 1 . . . . . . . . . . 2 1 . . 3 . . 1 Assault 2 | . . . 1 . . . . . . . . . . . . . . 1 . . . Garrison 3 | . . . . . . . . . . . . . . . . . . 3 . . . Intercept . | . . . . . . . . . . . . . . . . . . . . . . Searches Triggered 1 | . . . . . . . . . 1 . . . . . . . . . . . . Data Miner Redirects 1 | . . . . . . . . . . . . . . . . . . 1 . . . Construction Impeded 1 | . . . . . . . . . . . . . . . . . . . . . 1 Haulers Reinforced 1 | . . . . . . . . . . . . . . 1 . . . . . . . Active Scanning Responses . | . . . . . . . . . . . . . . . . . . . . . . Cargo Convoy Interrupts . | . . . . . . . . . . . . . . . . . . . . . . Stealth | -11 -10 -10 -8 -7 -7 -7 -7 -6 -6 -6 -6 -6 -5 -5 -5 -5 -5 -5 -4 -4 -4 --------- Run | Yrd Mat Sub Mat Fac Low Low Dat Pro Fac Low Low Zio Pro Fac Ext Cet Arc Hub Fac Was Fac Distress Signals 13 | . 2 . 1 1 . . . . 1 . . . 2 . . 2 . 3 . . 1 Communications Jammed 46 | . . . . 24 . . . . . . . . . . . . . 20 2 . . Distress Signals 46 | . . . . 24 . . . . . . . . . . . . . 20 2 . . Times Spotted 314 | . 21 13 52 35 1 5 . 6 34 6 . . 3 22 13 9 . 50 10 5 29 Peak Tracking Total 11 | . 5 2 5 5 1 3 . 2 7 5 . . 3 11 2 5 . 8 3 2 6 Tactical Retreats 17 | . . . . . . . . . 10 3 . . . 1 . . . 3 . . . Traps | -11 -10 -10 -8 -7 -7 -7 -7 -6 -6 -6 -6 -6 -5 -5 -5 -5 -5 -5 -4 -4 -4 ------- Run | Yrd Mat Sub Mat Fac Low Low Dat Pro Fac Low Low Zio Pro Fac Ext Cet Arc Hub Fac Was Fac Traps Triggered 14 | . . 1 3 3 . . . . 1 . . . 1 1 1 . . 1 1 . 1 Indirectly 1 | . . . . 1 . . . . . . . . . . . . . . . . . Trap Hack Attempts . | . . . . . . . . . . . . . . . . . . . . . . Triggered . | . . . . . . . . . . . . . . . . . . . . . . Disarmed . | . . . . . . . . . . . . . . . . . . . . . . Reprogrammed . | . . . . . . . . . . . . . . . . . . . . . . Reused . | . . . . . . . . . . . . . . . . . . . . . . Traps Extracted . | . . . . . . . . . . . . . . . . . . . . . . Installed . | . . . . . . . . . . . . . . . . . . . . . . Triggered . | . . . . . . . . . . . . . . . . . . . . . . Machines | -11 -10 -10 -8 -7 -7 -7 -7 -6 -6 -6 -6 -6 -5 -5 -5 -5 -5 -5 -4 -4 -4 ---------- Run | Yrd Mat Sub Mat Fac Low Low Dat Pro Fac Low Low Zio Pro Fac Ext Cet Arc Hub Fac Was Fac Machines Disabled 52 | . 2 1 12 1 . . . 1 . . . . . . 2 . 1 18 8 . 6 Max in Single Turn 7 | . 1 1 7 1 . . . 1 . . . . . . . . . 2 6 . 1 Garrison Access 2 | . . . . . . . . . 1 . . . . . . . . 1 . . . Network Hub 1 | . . . . . . . . . . . . . . . . . . 1 . . . Machines Repaired . | . . . . . . . . . . . . . . . . . . . . . . Machines Dismantled 1 | . . . . . . . . . . . . . . . . . . 1 . . . Machines Sabotaged . | . . . . . . . . . . . . . . . . . . . . . . Overloaded Fab Kills . | . . . . . . . . . . . . . . . . . . . . . . Hacking | -11 -10 -10 -8 -7 -7 -7 -7 -6 -6 -6 -6 -6 -5 -5 -5 -5 -5 -5 -4 -4 -4 --------- Run | Yrd Mat Sub Mat Fac Low Low Dat Pro Fac Low Low Zio Pro Fac Ext Cet Arc Hub Fac Was Fac Machines Accessed 73 | . 7 1 8 5 1 . 4 1 14 . 2 . . 15 3 . . 3 3 . 6 Terminals 41 | . 5 . 7 3 . . . . 8 . . . . 10 3 . . 2 1 . 2 Fabricators 10 | . . . . 2 . . . . 4 . . . . 2 . . . . 1 . 1 Repair Stations 2 | . 1 . . . . . . . . . . . . . . . . . . . 1 Recycling Units 6 | . 1 . 1 . . . . . 1 . . . . 2 . . . . 1 . . Scanalyzers 2 | . . . . . . . . . . . . . . 1 . . . . . . 1 Garrison Access 3 | . . . . . . . . . 1 . . . . . . . . 1 . . 1 Total Hacks 261 | . 25 9 23 12 1 . 30 1 42 . 7 . . 62 5 . . 7 11 . 26 Successful 172 | . 18 9 11 7 1 . 30 1 28 . 7 . . 43 2 . . 3 3 . 9 Failed 89 | . 7 . 12 5 . . . . 14 . . . . 19 3 . . 4 8 . 17 Catastrophic 15 | . . . . . . . . . 1 . . . . 4 1 . . . 2 . 7 Database Lockouts . | . . . . . . . . . . . . . . . . . . . . . . Manual 105 | . 15 . 21 1 . . . . 22 . . . . 34 . 1 . 1 4 . 6 Terminals 135 | . 20 . 21 9 . . . . 24 . . . . 40 5 . . 5 1 . 10 Fabricators 41 | . . . . 3 . . . . 16 . . . . 9 . . . . 6 . 7 Repair Stations 5 | . 3 . . . . . . . . . . . . . . . . . . . 2 Recycling Units 17 | . 2 . 2 . . . . . 1 . . . . 8 . . . . 4 . . Scanalyzers 10 | . . . . . . . . . . . . . . 5 . . . . . . 5 Garrison Access 5 | . . . . . . . . . 1 . . . . . . . . 2 . . 2 Terminal Hacks 88 | . 6 9 2 5 1 . 30 1 5 . 7 . . 16 2 . . 2 . . 2 Record 27 | . . 8 . . . . 11 1 1 . 6 . . . . . . . . . . Part Schematic 16 | . . . . 1 . . 11 . 1 . . . . 3 . . . . . . . Robot Schematic 5 | . . . . . . . 5 . . . . . . . . . . . . . . Robot Analysis 1 | . . . . . . . . . . . . . . 1 . . . . . . . Prototype ID Bank 8 | . 1 . 1 . . . 3 . . . . . . 3 . . . . . . . Open Door 3 | . . . . . 1 . . . . . 1 . . 1 . . . . . . . Branch Access Points 4 | . . . . 1 . . . . 1 . . . . 1 . . . . . . 1 Emergency Access Points 2 | . . . . 1 . . . . . . . . . . . . . . . . 1 Terminal Index 4 | . 1 . . . . . . . 1 . . . . 1 . . . 1 . . . Recycling Unit Index 1 | . . . . . . . . . . . . . . 1 . . . . . . . Alert Level 3 | . 2 . . . . . . . . . . . . 1 . . . . . . . Unreport Threat 2 | . . . . 1 . . . . . . . . . 1 . . . . . . . Locate Traps 5 | . 2 . . . . . . . 1 . . . . . 1 . . 1 . . . Recall Reinforcements 1 | . . . . . . . . . . . . . . 1 . . . . . . . Hauler Manifests 2 | . . . 1 . . . . . . . . . . 1 . . . . . . . Zone Layout 3 | . . . . 1 . . . . . . . . . 1 1 . . . . . . Derelict Proto ID Bank 1 | . . 1 . . . . . . . . . . . . . . . . . . . Fabricator Hacks 19 | . . . . 2 . . . . 9 . . . . 5 . . . . 2 . 1 Network Status 4 | . . . . . . . . . 1 . . . . 2 . . . . . . 1 Load Schematic 10 | . . . . 1 . . . . 6 . . . . 2 . . . . 1 . . Build 5 | . . . . 1 . . . . 2 . . . . 1 . . . . 1 . . Repair Station Hacks 4 | . 2 . . . . . . . . . . . . . . . . . . . 2 Scan Component 2 | . 1 . . . . . . . . . . . . . . . . . . . 1 Repair 2 | . 1 . . . . . . . . . . . . . . . . . . . 1 Recycling Unit Hacks 4 | . 1 . . . . . . . 1 . . . . 2 . . . . . . . Retrieve Components 4 | . 1 . . . . . . . 1 . . . . 2 . . . . . . . Scanalyzer 6 | . . . . . . . . . . . . . . 5 . . . . . . 1 Insert Component 3 | . . . . . . . . . . . . . . 2 . . . . . . 1 Analyze 3 | . . . . . . . . . . . . . . 3 . . . . . . . Garrison Access Hacks 2 | . . . . . . . . . 1 . . . . . . . . 1 . . . Seal Access 2 | . . . . . . . . . 1 . . . . . . . . 1 . . . Unauthorized Hacks 49 | . 9 . 9 . . . . . 12 . . . . 15 . . . . 1 . 3 Terminals 38 | . 8 . 8 . . . . . 9 . . . . 10 . . . . . . 3 Assimilate 4 | . . . 1 . . . . . 1 . . . . 2 . . . . . . . Botnet 10 | . 3 . 1 . . . . . 2 . . . . 3 . . . . . . 1 Operators 3 | . . . 1 . . . . . 1 . . . . . . . . . . . 1 Skim 21 | . 5 . 5 . . . . . 5 . . . . 5 . . . . . . 1 Fabricators 4 | . . . . . . . . . 3 . . . . 1 . . . . . . . Prioritize 1 | . . . . . . . . . . . . . . 1 . . . . . . . Recompile 3 | . . . . . . . . . 3 . . . . . . . . . . . . Repair Stations . | . . . . . . . . . . . . . . . . . . . . . . Recycling Units 7 | . 1 . 1 . . . . . . . . . . 4 . . . . 1 . . Reject 2 | . . . . . . . . . . . . . . 2 . . . . . . . Recyclers 1 | . . . . . . . . . . . . . . 1 . . . . . . . Mask 2 | . . . . . . . . . . . . . . 1 . . . . 1 . . Tunnel 2 | . 1 . 1 . . . . . . . . . . . . . . . . . . Scanalyzers . | . . . . . . . . . . . . . . . . . . . . . . Garrison Access . | . . . . . . . . . . . . . . . . . . . . . . Data Cores Recovered 3 | . . . 1 . . . . . 2 . . . . . . . . . . . . Used . | . . . . . . . . . . . . . . . . . . . . . . Hacking Detections 56 | . 6 . 7 5 . . . . 12 . . . . 13 3 . . 2 3 . 5 Full Trace Events 5 | . . . . 2 . . . . . . . . . 2 . . . . 1 . . Feedback Events . | . . . . . . . . . . . . . . . . . . . . . . Feedback Blocked . | . . . . . . . . . . . . . . . . . . . . . . Robot Schematics Acquired 7 | . . . . . . . 5 . . . . 2 . . . . . . . . . Robots Built . | . . . . . . . . . . . . . . . . . . . . . . Authchips . | . . . . . . . . . . . . . . . . . . . . . . Time . | . . . . . . . . . . . . . . . . . . . . . . Total Robot Build Rating . | . . . . . . . . . . . . . . . . . . . . . . Part Schematics Acquired 31 | . . . . 1 . . 11 . 1 . . 13 . 5 . . . . . . . Parts Built 7 | . . . . 2 . . . . 2 . . . . 1 . . . . 2 . . Authchips 3 | . . . . . . . . . 2 . . . . 1 . . . . . . . Time 371 | . . . . 106 . . . . 134 . . . . 67 . . . . 64 . . Total Part Build Rating 40 | . . . . 12 . . . . 8 . . . . 4 . . . . 16 . . Parts Repaired 2 | . 1 . . . . . . . . . . . . . . . . . . . 1 Time 121 | . 13 . . . . . . . . . . . . . . . . . . . 108 Parts Recycled . | . . . . . . . . . . . . . . . . . . . . . . Recycled Matter . | . . . . . . . . . . . . . . . . . . . . . . Retrieved Matter . | . . . . . . . . . . . . . . . . . . . . . . Retrieved Components 11 | . 9 . . . . . . . 1 . . . . 1 . . . . . . . Parts Scanalyzed 3 | . . . . . . . . . . . . . . 2 . . . . . . 1 Part Schematics Acquired 2 | . . . . . . . . . . . . . . 2 . . . . . . . Parts Damaged 1 | . . . . . . . . . . . . . . . . . . . . . 1 Bothacking | -11 -10 -10 -8 -7 -7 -7 -7 -6 -6 -6 -6 -6 -5 -5 -5 -5 -5 -5 -4 -4 -4 ------------ Run | Yrd Mat Sub Mat Fac Low Low Dat Pro Fac Low Low Zio Pro Fac Ext Cet Arc Hub Fac Was Fac Used RIF Installer . | . . . . . . . . . . . . . . . . . . . . . . Robots Hacked . | . . . . . . . . . . . . . . . . . . . . . . Non-combat . | . . . . . . . . . . . . . . . . . . . . . . Combat . | . . . . . . . . . . . . . . . . . . . . . . Robot Hacks Applied . | . . . . . . . . . . . . . . . . . . . . . . Relay Couplers Released . | . . . . . . . . . . . . . . . . . . . . . . Fabnet Peak Effective % . | . . . . . . . . . . . . . . . . . . . . . . Robots Rewired 7 | . . . . . . . . . . . . . . . 7 . . . . . . Allies Hacked . | . . . . . . . . . . . . . . . . . . . . . . Hacks Repelled . | . . . . . . . . . . . . . . . . . . . . . . Allies | -11 -10 -10 -8 -7 -7 -7 -7 -6 -6 -6 -6 -6 -5 -5 -5 -5 -5 -5 -4 -4 -4 -------- Run | Yrd Mat Sub Mat Fac Low Low Dat Pro Fac Low Low Zio Pro Fac Ext Cet Arc Hub Fac Was Fac Total Allies 21 | . . . 1 . . . . 1 1 . 2 . . 1 10 5 . . . . . Largest Group 9 | . . . 1 . . . . 1 1 . . . . 1 9 8 7 7 . . . Highest-Rated Group 717 | . . . 10 . . . . 96 96 . . . . 26 389 717 558 553 . . . Highest-Rated Ally 159 | . . . 10 . . . . 96 96 . . . . 26 159 159 96 96 . . . Total Orders 2 | . . . . . . . . . . . . . . . . 2 . . . . . STAY 1 | . . . . . . . . . . . . . . . . 1 . . . . . FOLLOW 1 | . . . . . . . . . . . . . . . . 1 . . . . . Ally Attacks 224 | . . . . . . . . . 10 . . . . . 107 39 12 56 . . . Total Damage 5515 | . . . . . . . . . 459 . . . . . 2247 813 231 1765 . . . Kills 36 | . . . . . . . . . 4 . . . . . 14 8 3 7 . . . Allies Corrupted 3 | . . . . . . . . . . . . . . . . . . 3 . . . Allies Melted 1 | . . . . . . . . . . . . . . . . . . 1 . . . Intel | -11 -10 -10 -8 -7 -7 -7 -7 -6 -6 -6 -6 -6 -5 -5 -5 -5 -5 -5 -4 -4 -4 ------- Run | Yrd Mat Sub Mat Fac Low Low Dat Pro Fac Low Low Zio Pro Fac Ext Cet Arc Hub Fac Was Fac Robot Analysis Total 1 | . . . . . . . . . . . . . . 1 . . . . . . . Derelict Logs Recovered 7 | . . . . . . 3 . . . 1 2 . 1 . . . . . . . . Drone Launches . | . . . . . . . . . . . . . . . . . . . . . . Drone Recoveries . | . . . . . . . . . . . . . . . . . . . . . . Exploration | -11 -10 -10 -8 -7 -7 -7 -7 -6 -6 -6 -6 -6 -5 -5 -5 -5 -5 -5 -4 -4 -4 ------------- Run | Yrd Mat Sub Mat Fac Low Low Dat Pro Fac Low Low Zio Pro Fac Ext Cet Arc Hub Fac Was Fac Turns Passed 20346 | 266 1153 3038 2105 1956 369 823 292 2001 1239 158 283 332 99 604 1283 338 75 1524 558 698 1152 Spaces Moved 12782 | 122 494 1465 893 656 152 244 91 306 2163 395 627 998 288 1346 832 160 38 392 365 394 361 Core 64 | 6 . . . . . . . 19 32 . . . . . 1 . . . . . 6 Treads 5593 | 112 494 1465 686 656 152 243 91 287 . . . . . . 184 160 38 392 . 278 355 Legs 684 | . . . . . . 1 . . . . . . . . 202 . . . 365 116 . Wheels 211 | 4 . . 207 . . . . . . . . . . . . . . . . . . Hover 395 | . . . . . . . . . 395 . . . . . . . . . . . . Flight 5835 | . . . . . . . . . 1736 395 627 998 288 1346 445 . . . . . . Fastest Speed 20 | 50 160 160 115 236 236 236 320 320 29 29 29 33 28 20 29 160 160 160 100 100 152 Average Speed 125 | 151 178 196 171 237 236 289 320 617 35 29 32 33 31 27 117 160 160 196 111 145 225 Slowest Speed 2250 | 160 240 240 240 315 236 680 320 2000 100 29 33 33 33 94 540 160 160 320 170 320 2250 Overloaded Moves 39 | . . . . . . . . . . . . . . 39 . . . . . . . Propulsion Burnouts . | . . . . . . . . . . . . . . . . . . . . . . Robots Hopped 6 | . . . . . . . . . 3 . . . 1 . 2 . . . . . . Cave-ins Triggered . | . . . . . . . . . . . . . . . . . . . . . . Exploration Rate (%) 50 | 7 79 69 73 20 28 46 69 55 44 64 66 85 45 39 70 56 59 41 7 86 10 Regions Visited 21 Branch Regions 13 Pre-discovered Areas 9 | . 1 . 1 . . 2 1 . . . 3 1 . . . . . . . . . Known Exits Taken 14 | . 1 1 1 1 . . . . 1 1 1 1 1 1 1 1 1 1 . . . Unknown Exits Taken 5 | 1 . . . . 1 1 1 1 . . . . . . . . . . . . . Scrap Searched 17 | . . . . . . 8 . 1 . 1 3 2 2 . . . . . . . . Spaces Dug 49 | . . . . . . . . 3 20 3 . . . 11 4 . . 5 . . 3 Terrain Destroyed 284 | . 3 1 58 . . . . 4 20 3 . . . 12 7 2 . 53 75 5 41 Melee 39 | . . . . . . . . 3 20 3 . . . 10 . . . . . . 3 Projectile 91 | . 3 1 11 . . . . 1 . . . . . 2 7 2 . 46 8 5 5 AOE 153 | . . . 47 . . . . . . . . . . . . . . 7 66 . 33 Terrain Rammed . | . . . . . . . . . . . . . . . . . . . . . . Walls Destroyed . | . . . . . . . . . . . . . . . . . . . . . . Machines Disabled . | . . . . . . . . . . . . . . . . . . . . . . Actions | -11 -10 -10 -8 -7 -7 -7 -7 -6 -6 -6 -6 -6 -5 -5 -5 -5 -5 -5 -4 -4 -4 --------- Run | Yrd Mat Sub Mat Fac Low Low Dat Pro Fac Low Low Zio Pro Fac Ext Cet Arc Hub Fac Was Fac Total 15519 | 160 640 1573 1229 857 156 317 94 360 2558 431 700 998 292 1542 1103 225 52 766 449 466 551 Wait 890 | . 38 9 66 41 . 27 . 8 238 33 70 . 1 80 103 19 15 75 21 12 34 Move 12752 | 121 493 1464 892 656 151 243 90 305 2157 394 626 997 285 1345 827 159 37 391 365 393 361 Hop 5 | . . . . . . . . . 2 . . . 1 . 2 . . . . . . Pick Up 212 | 7 12 19 47 12 . 8 . 1 20 . . . . 16 27 11 . 20 5 4 3 Fast Attach 171 | 8 7 5 14 11 . 2 2 3 36 . 1 . . 19 14 6 . 15 3 9 16 Attach 86 | . . 1 15 4 1 4 . 3 5 . . . . 6 12 . . 15 6 2 12 Detach 38 | 1 1 . 4 . . . . . . . . . . 4 11 . . 8 2 1 6 Swap 101 | . 7 4 14 6 1 7 . 3 7 . . . 2 7 5 2 . 27 6 1 2 Drop 289 | 1 17 23 44 24 . 5 2 3 40 . 1 . 1 34 22 17 . 24 7 15 9 Fire 796 | 22 65 38 132 96 3 17 . 30 . . . . . 3 31 11 . 187 34 29 98 Melee 101 | . . . . . . . . 4 53 4 2 1 . 27 4 . . . . . 6 Ram . | . . . . . . . . . . . . . . . . . . . . . . Kick 1 | . . . . . . . . . . . . . . . 1 . . . . . . Crush 15 | . . . 1 5 . 4 . . . . . . . . . . . 1 . . 4 Escape Stasis 22 | . . . . 2 . . . . . . . . 2 . 18 . . . . . . Rewire 26 | . . . . . . . . . . . . . . . 26 . . . . . . Trap . | . . . . . . . . . . . . . . . . . . . . . . Miscellaneous 14 | . . 10 . . . . . . . . . . . 1 . . . 3 . . . Route ------- -11/Scrapyard -10/Materials (discovered 5 exits: *Mat x3 / [*Min] / *Sub) -10/Subcaves (discovered 2 exits: *Mat x2) -8/Materials (discovered 3 exits: *Fac x3) -7/Factory (discovered 2 exits: *Low x2) -7/Lower Caves -7/Lower Caves -7/Data Miner -6/Proximity Caves -6/Factory (discovered 3 exits: *Fac / *Low x2) -6/Lower Caves -6/Lower Caves -6/Zion -5/Proximity Caves -5/Factory (discovered 5 exits: Fac / *Upp x2 / *Ext x2) -5/Extension (discovered 2 exits: *Fac / *Cet) -5/Cetus (discovered 2 exits: *Fac / *Arc) -5/Archives -5/Hub_04(d) -4/Factory (discovered 2 exits: [*Res] / Arm) -4/Waste -4/Factory (discovered 4 exits: [*Res] / Upp x2 / Arm) History --------- Turn | Location | Event 11 | -11/Scrapyard | Discovered new exit (range 16) 267 | -11/Scrapyard | Entered Materials 318 | -10/Materials | Build established: Mutant 391 | -10/Materials | Discovered new exit (range 8) 476 | -10/Materials | Discovered new exit (range 15) 1010 | -10/Materials | Discovered new exit (range 13) 1030 | -10/Materials | Identified exit to Materials 1030 | -10/Materials | Identified exit to Subcaves 1067 | -10/Materials | Derelicts attacked the area 1084 | -10/Materials | Learned location of 1 exit from Recycling 1194 | -10/Materials | Learned location of 3 exits from Materials 1211 | -10/Materials | Learned 2 Storage zone layouts 1235 | -10/Materials | Learned location of 1 exit from Storage 1256 | -10/Materials | Repaired Lgt. Treads 1269 | -10/Materials | Loaded intel: 1 repair station location 1311 | -10/Materials | Learned location of 2 exits from Materials 1420 | -10/Materials | Entered Subcaves 1421 | -10/Subcaves | Identified exit to Materials 2051 | -10/Subcaves | Shifting Twisted Machinery released Sub. Monowheel 2054 | -10/Subcaves | Shifting Twisted Machinery released Battle Cannon 2596 | -10/Subcaves | Shifting Twisted Machinery released Flamer 2735 | -10/Subcaves | Build established: Subdweller-Mutant 2810 | -10/Subcaves | Shifting Twisted Machinery released Sub. Beam Cannon 2847 | -10/Subcaves | A swath of the cavern ceiling suddenly collapsed 2934 | -10/Subcaves | Shifting Twisted Machinery released Battle Cannon 3895 | -10/Subcaves | Visited 4L-MR0's lab 3916 | -10/Subcaves | Found Meta Core 4458 | -10/Subcaves | Entered Materials 4458 | -8/Materials | Evolved 4 slots: Propulsion x2, Utility x2 4459 | -8/Materials | Identified exit to Factory 4893 | -8/Materials | Build established: Scavenger-Mutant 6237 | -8/Materials | Core integrity fell below 50% 6305 | -8/Materials | Build established: Mutant 6458 | -8/Materials | First assault squad dispatched 6563 | -8/Materials | Entered Factory 6563 | -7/Factory | Evolved 2 slots: Power x1, Utility x1 6590 | -7/Factory | Identified exit to Lower Caves 6668 | -7/Factory | Build established: Scavenger-Mutant 7348 | -7/Factory | Fabricated Imp. Plasma Cutter (x2) 8519 | -7/Factory | Entered Lower Caves 8539 | -7/Lower Caves | Attracted the attention of an 0b10 checkpoint 8871 | -7/Lower Caves | Discovered new exit (range 8) 8888 | -7/Lower Caves | Entered another Lower Caves area 9189 | -7/Lower Caves | Lost 4 parts (3n1u) 9380 | -7/Lower Caves | Encountered a Warlord checkpoint 9502 | -7/Lower Caves | Learned Factory stockpile data 9515 | -7/Lower Caves | Discovered new exit (range 5) 9711 | -7/Lower Caves | Entered Data Miner 9712 | -7/Data Miner | Discovered new exit (range 6) 9773 | -7/Data Miner | Met Data Miner 9831 | -7/Data Miner | Learned location of Section 7 (-2) 9831 | -7/Data Miner | Acquired the access code to Warlord's prototype stash 9885 | -7/Data Miner | Received God Mode back door access code from Data Miner 10003 | -7/Data Miner | Entered Proximity Caves 10006 | -6/Proximity Caves | Spotter reported a threat 10006 | -6/Proximity Caves | Spotter reported a threat 10163 | -6/Proximity Caves | Spotted B-75 Beast 10171 | -6/Proximity Caves | Core integrity fell below 50% 10207 | -6/Proximity Caves | Destroyed B-75 Beast 10237 | -6/Proximity Caves | Lost 4 parts (1p3n) 10498 | -6/Proximity Caves | Build established: Mutant 11399 | -6/Proximity Caves | Found Alien Artifact 11399 | -6/Proximity Caves | Identified Dimensional Node Initializer 11399 | -6/Proximity Caves | Initialized slip node 11694 | -6/Proximity Caves | Discovered new exit (range 13) 11899 | -6/Proximity Caves | Attracted the attention of an 0b10 checkpoint 11927 | -6/Proximity Caves | Escorted by Enhanced Grunt 11953 | -6/Proximity Caves | Lost 4 parts (1p3u) 12004 | -6/Proximity Caves | Entered Factory 12004 | -6/Factory | Accompanied by 1 ally 12004 | -6/Factory | Evolved 2 slots: Utility x2 12048 | -6/Factory | Identified exit to Lower Caves 12309 | -6/Factory | Build established: Hacker-Mutant 12541 | -6/Factory | Spotted B-75 Beast 12624 | -6/Factory | Discovered new exit (range 15) 12704 | -6/Factory | Search patrols dispatched 12711 | -6/Factory | Learned 2 Lower Caves zone layouts 12723 | -6/Factory | Build established: Hacker-Sprinter 12755 | -6/Factory | Loaded intel: 52 interactive machine locations 12788 | -6/Factory | Learned Extension emergency access door positions 12811 | -6/Factory | Learned 2 Proximity Caves zone layouts 12812 | -6/Factory | Fabricated Cld. VTOL Module (x1) 12822 | -6/Factory | Learned Hub_04(d) emergency access door positions 12842 | -6/Factory | Learned location of 1 exit from Proximity Caves 12880 | -6/Factory | Fabricated Cld. VTOL Module (x1) 13117 | -6/Factory | Identified exit to Factory 13243 | -6/Factory | Entered Lower Caves 13262 | -6/Lower Caves | Encountered a Warlord checkpoint 13284 | -6/Lower Caves | Spotted B-75 Beast 13333 | -6/Lower Caves | Learned Factory emergency access door positions 13397 | -6/Lower Caves | Discovered new exit (range 11) 13400 | -6/Lower Caves | Identified exit to Lower Caves 13401 | -6/Lower Caves | Entered another Lower Caves area 13405 | -6/Lower Caves | A Commander dispatched an escort 13406 | -6/Lower Caves | Commander's escort returned to base 13408 | -6/Lower Caves | Learned Armory emergency access door positions 13408 | -6/Lower Caves | Learned Extension stockpile data 13408 | -6/Lower Caves | Learned Extension terminal intel 13446 | -6/Lower Caves | Learned location of 1 exit from Factory 13521 | -6/Lower Caves | Learned location of Zion (-6) 13645 | -6/Lower Caves | Discovered new exit (range 14) 13649 | -6/Lower Caves | Identified exit to Zion 13684 | -6/Lower Caves | Entered Zion 13696 | -6/Zion | System corruption cleaned by Quarantine Array 13704 | -6/Zion | Given the Hacking Drone Bay 13715 | -6/Zion | Discovered new exit (range 15) 13723 | -6/Zion | Received a hallucinogenic algorithm 13791 | -6/Zion | Learned location of Quarantine (-2) 13804 | -6/Zion | Met Imprinter 14015 | -6/Zion | Identified exit to Proximity Caves 14016 | -6/Zion | Entered Proximity Caves 14035 | -5/Proximity Caves | Learned Factory non-interactive machine intel 14115 | -5/Proximity Caves | Entered Factory 14115 | -5/Factory | Evolved 2 slots: Propulsion x1, Utility x1 14116 | -5/Factory | Identified exit to Factory 14118 | -5/Factory | Loaded intel: 212 non-interactive machine locations 14247 | -5/Factory | Discovered new exit (range 17) 14247 | -5/Factory | Discovered new exit (range 14) 14247 | -5/Factory | Identified exit to Upper Caves 14247 | -5/Factory | Identified exit to Extension 14291 | -5/Factory | Spotted B-75 Beast 14370 | -5/Factory | Fabricated Cld. VTOL Module (x1) 14444 | -5/Factory | Found Prototype Processor 14444 | -5/Factory | Identified Exp. Targeting Computer 14590 | -5/Factory | Learned 4 Research zone layouts 14719 | -5/Factory | Entered Extension 14720 | -5/Extension | Identified exit to Cetus 14721 | -5/Extension | Loaded intel: 14 terminal locations 14768 | -5/Extension | Rescued A7 14811 | -5/Extension | Rescued a captive Derelict 14858 | -5/Extension | Rescued a captive Derelict 15257 | -5/Extension | Build established: Hacker-Mutant 15519 | -5/Extension | Disrupted transfer network 15571 | -5/Extension | Spotted B-75 Beast 15578 | -5/Extension | Destroyed B-75 Beast 15587 | -5/Extension | Spotted B-75 Beast 15612 | -5/Extension | Allies destroyed B-75 Beast 15645 | -5/Extension | Lost 4 allies 15884 | -5/Extension | Discovered exit to Factory (range 16) 15904 | -5/Extension | Build established: Scavenger-Mutant 16002 | -5/Extension | Entered Cetus 16002 | -5/Cetus | Accompanied by 5 allies (A7) 16007 | -5/Cetus | Acquired a Cetus Manufacturing Module code from A7 16025 | -5/Cetus | Spotted Cetus Guard 16025 | -5/Cetus | Spotted Cetus Guard 16029 | -5/Cetus | Spotted Cetus Guard 16032 | -5/Cetus | Allies destroyed Cetus Guard 16032 | -5/Cetus | Spotted Cetus Guard 16037 | -5/Cetus | Allies destroyed Cetus Guard 16038 | -5/Cetus | Allies destroyed Cetus Guard 16042 | -5/Cetus | Allies destroyed Cetus Guard 16167 | -5/Cetus | Started Cetus Manufacturing Module 16186 | -5/Cetus | Discovered new exit (range 15) 16192 | -5/Cetus | Manufactured an Enhanced Grunt 16209 | -5/Cetus | Build established: Hacker-Mutant 16214 | -5/Cetus | Spotted Cetus Guard 16215 | -5/Cetus | Spotted Cetus Guard 16217 | -5/Cetus | Manufactured an Enhanced Grunt 16218 | -5/Cetus | Spotted Cetus Guard 16219 | -5/Cetus | Spotted Cetus Guard 16221 | -5/Cetus | Destroyed Cetus Guard 16226 | -5/Cetus | Allies destroyed Cetus Guard 16232 | -5/Cetus | Allies destroyed Cetus Guard 16233 | -5/Cetus | Allies destroyed Cetus Guard 16242 | -5/Cetus | Manufactured an Enhanced Grunt 16249 | -5/Cetus | Discovered exit to Factory (range 16) 16260 | -5/Cetus | Met Revision 17 16267 | -5/Cetus | Manufactured an Enhanced Grunt 16267 | -5/Cetus | System corruption reached 10% 16292 | -5/Cetus | Manufactured an Enhanced Grunt 16334 | -5/Cetus | Identified exit to Archives 16340 | -5/Cetus | Entered Archives 16340 | -5/Archives | Accompanied by 8 allies (A7) 16363 | -5/Archives | Met Zhirov 16369 | -5/Archives | Reinforcements dispatched to Archives 16377 | -5/Archives | Discovered new exit (range 13) 16395 | -5/Archives | Identified exit to Hub_04(d) 16414 | -5/Archives | Reinforcements dispatched to Archives 16415 | -5/Archives | Entered Hub_04(d) 16415 | -5/Hub_04(d) | Accompanied by 7 allies 16553 | -5/Hub_04(d) | Network Hub disabled 16609 | -5/Hub_04(d) | Spotted Lightning 16609 | -5/Hub_04(d) | Spotted Lightning 16614 | -5/Hub_04(d) | Garrison activated, responded to threat 16622 | -5/Hub_04(d) | Spotted Lightning 16626 | -5/Hub_04(d) | Destroyed Lightning 16681 | -5/Hub_04(d) | Lost 4 allies 16688 | -5/Hub_04(d) | Destroyed Lightning 16715 | -5/Hub_04(d) | Lost 3 parts (1n2u) 16715 | -5/Hub_04(d) | Destroyed Lightning 16739 | -5/Hub_04(d) | Found Prototype Energy Cannon 16744 | -5/Hub_04(d) | Found Prototype Device 16744 | -5/Hub_04(d) | Identified Exp. EM Disruption Field 16770 | -5/Hub_04(d) | Build established: Scavenger-Mutant 16797 | -5/Hub_04(d) | Found Exp. EM Disruption Field 16801 | -5/Hub_04(d) | Found Prototype Device 16808 | -5/Hub_04(d) | Identified Exp. Phase Shifter 16902 | -5/Hub_04(d) | Spotted B-75 Beast 16929 | -5/Hub_04(d) | Destroyed B-75 Beast 17015 | -5/Hub_04(d) | First assault squad dispatched 17043 | -5/Hub_04(d) | Incoming assault squad redirected 17103 | -5/Hub_04(d) | System corruption reached 30% 17123 | -5/Hub_04(d) | Destroyed 8 combat bots 17137 | -5/Hub_04(d) | Discovered exit to Factory (range 10) 17220 | -5/Hub_04(d) | Spotted Lightning 17222 | -5/Hub_04(d) | Spotted Lightning 17226 | -5/Hub_04(d) | Spotted Lightning 17297 | -5/Hub_04(d) | Destroyed Lightning 17315 | -5/Hub_04(d) | Destroyed Lightning 17346 | -5/Hub_04(d) | Destroyed Lightning 17362 | -5/Hub_04(d) | Found Exp. Phase Shifter 17387 | -5/Hub_04(d) | Found Exp. EM Disruption Field 17650 | -5/Hub_04(d) | Spotted Lightning 17651 | -5/Hub_04(d) | Spotted Lightning 17655 | -5/Hub_04(d) | Spotted Lightning 17722 | -5/Hub_04(d) | Destroyed Lightning 17736 | -5/Hub_04(d) | Destroyed Lightning 17790 | -5/Hub_04(d) | Core integrity fell below 50% 17802 | -5/Hub_04(d) | Destroyed Lightning 17837 | -5/Hub_04(d) | Identified EMDS 17843 | -5/Hub_04(d) | Found EMDS 17879 | -5/Hub_04(d) | Found Exp. Targeting Computer 17892 | -5/Hub_04(d) | Found Exp. Targeting Computer 17939 | -5/Hub_04(d) | Entered Factory 17939 | -4/Factory | Evolved 2 slots: Propulsion x1, Utility x1 17940 | -4/Factory | Identified exit to Armory 18001 | -4/Factory | Found Unknown Device 18001 | -4/Factory | Identified Quantum Capacitor 18234 | -4/Factory | Fabricated Adv. Force Field? 18483 | -4/Factory | Discovered new exit (range 12) 18497 | -4/Factory | Sucked down chute 18497 | -4/Factory | Entered Waste 18525 | -4/Waste | Spotted C-40 Crusher 18543 | -4/Waste | Destroyed C-40 Crusher 18568 | -4/Waste | Spotted C-40 Crusher 18578 | -4/Waste | Destroyed C-40 Crusher 18587 | -4/Waste | Spotted C-40 Crusher 18596 | -4/Waste | Destroyed C-40 Crusher 18627 | -4/Waste | Spotted C-40 Crusher 18629 | -4/Waste | Destroyed C-40 Crusher 18632 | -4/Waste | Spotted C-40 Crusher 18634 | -4/Waste | Spotted C-40 Crusher 18664 | -4/Waste | Crushed by Compactor (1 part destroyed, 1 dropped) 18675 | -4/Waste | Crushed by Compactor (1 part destroyed) 18685 | -4/Waste | Destroyed C-40 Crusher 18711 | -4/Waste | Crushed by Compactor (1 part destroyed) 18712 | -4/Waste | Destroyed C-40 Crusher 18747 | -4/Waste | Found Damper Plating 18765 | -4/Waste | Found Damper Plating 18868 | -4/Waste | Discovered new exit (range 16) 18916 | -4/Waste | Found Prototype Device 18916 | -4/Waste | Identified Thermal Barrier 19195 | -4/Waste | Entered Factory 19452 | -4/Factory | Discovered new exit (range 13) 19533 | -4/Factory | Identified exit to Upper Caves 19603 | -4/Factory | Spotted B-86 Titan 19693 | -4/Factory | Attached Meta Core, gained temporary slots: Propulsion, Utility, Weapon 19721 | -4/Factory | Lost 7 parts (2p1n3u1w) 19734 | -4/Factory | Destroyed B-86 Titan 19768 | -4/Factory | Lost 3 parts (2n1w) 19787 | -4/Factory | Core integrity fell below 50% 20138 | -4/Factory | Repaired Centrium Heavy Treads 20347 | -4/Factory | Self-destructed Last Messages --------------- 20291_ S-27 Virus suffers critical hit (Destroy). 20291_ Destroyed Lgt. Nuclear Core. 20291_ HV Slug penetrates Wall. 20298_ S-27 Virus destroyed. 20299_ U-05 Engineer builds a Wall. 20303_ Acquired 18 matter. 20309_ U-05 Engineer builds a Wall. 20332_ Dropped Scythe. 20332_ Dropped Hyp. Mass Driver. 20333_ U-05 Engineer builds a Wall. 20334_ EMDS Slug penetrates Wall. 20336_ Slammed into U-05 Engineer. 20338_ Imp. Cooling System destroyed. 20338_ System corrupted by crushing effect (+2). 20340_ Slammed into B-60 Warrior. 20343_ EMDS Slug penetrates B-60 Warrior. 20345_ Slammed into B-60 Warrior. 20347_ Exp. Targeting Computer destroyed. 20347_ System corrupted by crushing effect (+2). Map ----- +----------------------------------------------------+ | | | | | | | | | | | | | | | ??????????????????????#####?#????????????????????? | | ????????????????? ?? ???????????????????? | | ?????????????????"" """ """ ""??????????#########? | | ????????????????""" """ """ """?????????# ? | | ???????######## """ """ """ """ ????????# """ """? | | ######## # "" "" "" "" ????????# """ """ | | ## # "" "" "" "" #?####### """ """ | | ## # #?# # | | ## #########+########### " # " " | | # #?????# "T + ""G"" [ | | + #?????# ######### # | | # #?????# #???????# ########## | | # ####### #???????## ##??????# | | # # /%/ % #????????# #???????# " | | + # ####### #????????# #???????# " | | # # !#?????# #????????# #???????# " | | # # #?????# #????????# #???????# " | | + # #?????# b ########## #???????# | | # ########?????# b@# ! # ########### | | # ???????????# b# # | | # ??????????# # # ###### #### | | #### ?????????# # # ######+###? | | ???###### ??####### ]/# !] # # """ ## | | ????????? # ! # # """ ! # | | ?????????? p [#= + + """ # | | ??????????? p # # # # | | ??????????? # ! + # # | | ????????????## ###########+########### | | ?????????????# ####+###???# ! #??### | | ?????????????# ???????????# #?## # | | ????????????? ????????????#! #?# # | | ????????????? ????????????# ! #### # | | ??????????????"" ?????????????# %" | | ??????????????????????????????##############" | | ???????????????? ?????????????# ## | | ???????????????? ????????????# """ """" ## | | ???????????????? #####+####### "T" """" ## | | ????????????????? # """" ## | | ???????????????? # """" # | | ????????????????? """" # % + | | ???????????????"" """ ""F" + """" """" # | | ??????????????""" """"" "" # """" """" # ## | | ??????????????""" """"" # """" """" # #? | +----------------------------------------------------+ Best States ------------- Heat Dissipation 128 Coolant Potential 80 Energy Generation 45 Energy Capacity 650 Matter Stores 300 Matter Capacity 300 Sight Range 16 Robot Scan Range 16 Terrain Scan Density 10 Jamming Range 16 Corruption Block 8 Armor Coverage 3200 Resistance: KI 20 Resistance: TH 25 Resistance: EM 90 Utility Shielding 66 Phase Shifting 20 Evasion (%) 64 Targeting Accuracy 12 Core Analysis 6 Armor Integrity Analysis 30 Recoil Reduction 6 Offensive Hacking 40 Defensive Hacking 14 Authchip Count 2 Item Schematics ----------------- Imp. Plasma Cutter | -7/Factory | Hacked Combat Drone Bay | -7/Data Miner | Free Cld. Aerolev Unit | -7/Data Miner | Free Lgt. Regenerative Plating | -7/Data Miner | Free Thermal Defense Suite | -7/Data Miner | Free Cld. Plasma Cannon | -7/Data Miner | Free Gyrokinetic Inverter | -7/Data Miner | Free Imp. Focal Shield | -7/Data Miner | Free Disruptor Cannon | -7/Data Miner | Free Thermic Laser | -7/Data Miner | Free Cmb. Gravmag System | -7/Data Miner | Free Imp. Coolant Injector | -7/Data Miner | Free Cld. VTOL Module | -6/Factory | Hacked Focal Shield | -6/Zion | Archive Hyp. Coil Gun | -6/Zion | Archive Variable Charge Gun | -6/Zion | Archive Imp. System Restoration Module | -6/Zion | Archive Energy Well | -6/Zion | Archive Imp. Force Field | -6/Zion | Archive Recoil Nullifier | -6/Zion | Archive Fission Core | -6/Zion | Archive Nuclear Pulse Thruster | -6/Zion | Archive Power Sword | -6/Zion | Archive Imp. System Guard | -6/Zion | Archive Imp. Kinecellerator | -6/Zion | Archive Phase Cannon | -6/Zion | Archive Q-thruster | -5/Factory | Hacked Adv. Shield Generator | -5/Factory | Hacked Adv. Transmission Jammer | -5/Factory | Scanalyzed Multitool | -5/Factory | Scanalyzed Adv. Force Field | -5/Factory | Hacked Robot Schematics ------------------ E-15 Imp | -7/Data Miner | Free A-15 Conveyor | -7/Data Miner | Free B-48 Gladiator | -7/Data Miner | Free S-27 Virus | -7/Data Miner | Free H-66 Slayer | -7/Data Miner | Free K-01 Serf | -6/Zion | Archive L-61 Swordsman | -6/Zion | Archive Fabricated ------------ Imp. Plasma Cutter | x2 | -7/Factory Cld. VTOL Module | x1 | -6/Factory | Authchip Cld. VTOL Module | x1 | -6/Factory | Authchip Cld. VTOL Module | x1 | -5/Factory | Authchip Adv. Force Field | x2 | -4/Factory Alien Tech Used ----------------- Dimensional Node Initializer Achievements -------------- None Challenges ------------ None Game ------ Seed PrecisionZionitePerforator Manual? 0 Play Time 04:05:14 Cumulative 293.9 hours Start 2024.09.03 @ 17:40:09 End 2024.09.04 @ 04:36:22 Sessions 5 Manual Loads 0 Difficulty Rogue Special Mode None Game No. 219 Rogue 214 Adventurer 5 Explorer 0 Win Type - Total 7 Types 4/0/3/0/0/0/0/0/0 Lore% 66 Gallery% 83 Achievement% 68 Wizard Run 0 Options --------- Layout 2 ASCII 0 Keyboard 0 Movement Mouse Keybinds 0 Fullscreen 2 Font 24/Smallcaps Map View 50x44 Zoom Use 0% Tactical HUD 1 Map Filters NONE Filters NONE Steam 1 RUN: 6ddf30d6-55e1-436b-8669-4a279c89efa8